bitfinex-derivatives/quotes_BTCF0:USTF0_20251030
["timestamp","ask_amount","ask_price","bid_price","bid_amount"]
[1761797700296,0.519304,110050.0,110040.0,0.33046842]
[1761797700494,1.119304,110050.0,110040.0,0.00838842]
[1761797700697,0.519304,110050.0,110040.0,0.32208]
[1761797700893,0.06464,110030.0,110020.0,0.79878763]
[1761797701106,0.06464,110030.0,110020.0,0.59409685]
[1761797701394,0.1747682,110020.0,110010.0,0.01043]
[1761797701599,0.08388,110020.0,110010.0,0.44244089]
[1761797701903,0.4709164,110040.0,110010.0,0.80324089]
[1761797702087,0.4709164,110040.0,110020.0,0.02086]
[1761797702088,0.51632,110030.0,110020.0,0.02086]
[1761797702403,0.51632,110030.0,110020.0,0.001]
[1761797702586,0.51632,110030.0,110020.0,0.32308]
[1761797702786,1.11632,110030.0,110020.0,0.32308]
[1761797702985,0.51632,110030.0,110020.0,0.001]
[1761797703181,0.51632,110030.0,110020.0,0.32308]
[1761797703590,0.72101078,110030.0,110020.0,0.001]
[1761797703896,0.74212563,110030.0,110020.0,0.32208]
[1761797704099,0.53743485,110030.0,110020.0,0.32208]
[1761797704399,0.53943485,110030.0,110020.0,0.32208]
[1761797704592,0.74412563,110030.0,110020.0,0.32208]
[1761797705389,0.74684563,110030.0,110020.0,0.32208]
[1761797705594,0.06266,110010.0,110000.0,0.00858846]
[1761797705791,0.42346,110010.0,110000.0,0.32208]
[1761797706598,0.42346,110010.0,109990.0,1.5]
[1761797706599,0.07805,110000.0,109990.0,1.5]
[1761797706900,0.06157,109970.0,109960.0,0.45184538]
[1761797707199,0.0204519,109970.0,109960.0,0.72816162]
[1761797707396,0.0204519,109970.0,109960.0,0.43253324]
[1761797707995,0.0204519,109970.0,109960.0,1.94099053]
[1761797708190,0.0224519,109970.0,109960.0,1.94099053]
[1761797708596,0.4125019,109970.0,109960.0,1.94099053]
[1761797708788,0.4125019,109970.0,109960.0,0.11891053]
[1761797709103,0.4125019,109970.0,109960.0,0.36461053]
[1761797709300,0.77586584,109970.0,109960.0,0.04253053]
[1761797709598,0.06157,109950.0,109940.0,9.666e-05]
[1761797709795,1.49865394,109950.0,109940.0,9.666e-05]
[1761797710092,1.74906564,109950.0,109940.0,9.666e-05]
[1761797710295,1.10529,109950.0,109940.0,9.666e-05]
[1761797710501,1.44865394,109950.0,109940.0,9.666e-05]
[1761797710698,1.53959744,109950.0,109940.0,9.666e-05]
[1761797710907,0.8741135,109950.0,109940.0,9.666e-05]
[1761797711094,0.8771135,109950.0,109940.0,9.666e-05]
[1761797711401,0.8771135,109950.0,109940.0,0.06021666]
[1761797711593,0.8801135,109950.0,109940.0,9.666e-05]
[1761797711797,1.22347744,109950.0,109940.0,9.666e-05]
[1761797712103,1.22547744,109950.0,109940.0,9.666e-05]
[1761797712399,0.8821135,109950.0,109940.0,0.32225666]
[1761797712603,0.79117,109950.0,109940.0,0.47332916]
[1761797712788,0.79117,109950.0,109940.0,0.39863666]
[1761797713099,0.79017,109950.0,109940.0,0.48958916]
[1761797713299,0.7286,109950.0,109940.0,0.48958916]
[1761797713501,0.3678,109950.0,109940.0,0.48958916]
[1761797713686,0.3688,109950.0,109940.0,0.48958916]
[1761797714092,0.3658,109950.0,109940.0,0.48958916]
[1761797714293,0.41931,109950.0,109940.0,0.39863666]
[1761797714496,0.42131,109950.0,109940.0,0.39863666]
[1761797714698,0.3648,109950.0,109940.0,0.39863666]
[1761797714890,0.3648,109950.0,109940.0,0.48958916]
[1761797715090,0.3628,109950.0,109940.0,0.48958916]
[1761797715290,0.002,109950.0,109940.0,1.1937531]
[1761797716003,0.3608,109970.0,109960.0,0.07756]
[1761797716214,0.3608,109970.0,109960.0,0.4906959]
[1761797716499,0.3608,109970.0,109960.0,0.39976]
[1761797717089,0.5082378,109970.0,109960.0,0.38216]
[1761797717295,0.5122378,109970.0,109960.0,0.38216]
[1761797717504,0.5122378,109970.0,109960.0,0.32224]
[1761797717809,0.5122378,109970.0,109960.0,0.3822]
[1761797717992,0.42131,109970.0,109960.0,0.3998]
[1761797718197,0.5142382,109970.0,109960.0,0.3998]
[1761797718387,0.5142382,109970.0,109960.0,0.3822]
[1761797718593,0.5142382,109970.0,109960.0,0.35163]
[1761797718794,0.1474507,109960.0,109950.0,0.02939]
[1761797718996,0.1474546,109950.0,109940.0,0.07631666]
[1761797719200,0.5082546,109950.0,109940.0,0.39851666]
[1761797719396,0.05651,109950.0,109940.0,0.39851666]
[1761797719606,0.5082515,109960.0,109950.0,0.05996]
[1761797719908,0.1474546,109950.0,109940.0,0.39851666]
[1761797720202,0.5082546,109950.0,109940.0,0.39851666]
[1761797720393,0.5092546,109950.0,109940.0,0.02948666]
[1761797720601,0.85261854,109950.0,109940.0,9.666e-05]
[1761797720795,0.5082546,109950.0,109940.0,9.666e-05]
[1761797721298,0.38888,109950.0,109940.0,0.16860936]
[1761797721499,0.02808,109950.0,109940.0,0.16860936]
[1761797721705,0.5082544,109950.0,109940.0,0.06005666]
[1761797721901,0.5082544,109950.0,109940.0,0.02948666]
[1761797722206,0.05851,109950.0,109940.0,0.16860926]
[1761797722407,0.004,109950.0,109940.0,0.16860926]
[1761797722708,0.5122543,109950.0,109940.0,0.07765666]
[1761797722894,0.06051,109950.0,109940.0,0.07765666]
[1761797723095,0.5122543,109950.0,109940.0,0.07765666]
[1761797723309,0.42131,109950.0,109940.0,0.07765666]
[1761797723495,0.5102543,109950.0,109940.0,0.07765666]
[1761797723695,0.5122543,109950.0,109940.0,0.39989666]
[1761797723895,0.5102543,109950.0,109940.0,0.39989666]
[1761797724103,0.5112543,109950.0,109940.0,0.39989666]
[1761797724305,0.42031,109950.0,109940.0,0.39989666]
[1761797724496,0.5112533,109950.0,109940.0,0.39989666]
[1761797725208,0.5112533,109950.0,109940.0,0.01322766]
[1761797725393,0.85461724,109950.0,109940.0,0.01322766]
[1761797725709,0.89733724,109950.0,109940.0,0.01322766]
[1761797725900,0.87733724,109950.0,109940.0,0.01322766]
[1761797726094,1.19957724,109950.0,109940.0,6e-08]
[1761797726608,1.18957724,109950.0,109940.0,6e-08]
[1761797726810,1.18957724,109950.0,109890.0,0.3608]
[1761797726811,0.0909804,109910.0,109890.0,0.3822]
[1761797727119,0.5082904,109910.0,109900.0,0.05996]
[1761797727501,0.41738574,109910.0,109900.0,0.1509449]
[1761797727701,0.38895574,109910.0,109900.0,0.1685449]
[1761797727910,0.41738574,109910.0,109900.0,0.1685449]
[1761797728120,7.574e-05,109910.0,109900.0,0.1685449]
[1761797728308,7.574e-05,109910.0,109900.0,0.5293449]
[1761797728811,7.574e-05,109910.0,109900.0,0.5303449]
[1761797729001,7.574e-05,109910.0,109900.0,0.1695449]
[1761797729311,7.574e-05,109910.0,109900.0,0.07956]
[1761797729512,0.05658574,109910.0,109900.0,0.40184]
[1761797729803,0.14756244,109910.0,109900.0,0.40184]
[1761797730012,0.50836244,109910.0,109900.0,0.07956]
[1761797730204,0.41738574,109910.0,109900.0,0.40184]
[1761797730414,0.41738574,109910.0,109900.0,0.002]
[1761797730609,0.41738574,109910.0,109900.0,0.03139]
[1761797730804,0.50836244,109910.0,109900.0,0.002]
[1761797731801,0.51108244,109910.0,109900.0,0.002]
[1761797732010,0.51108244,109910.0,109870.0,1.5]
[1761797732011,0.05651,109880.0,109870.0,1.5]
[1761797732200,0.49951501,109880.0,109870.0,1.5]
[1761797732400,0.49951501,109880.0,109870.0,1.82428]
[1761797732804,0.05651,109860.0,109850.0,0.39283383]
[1761797733013,0.05659026,109880.0,109870.0,0.05996]
[1761797733213,0.00108026,109880.0,109870.0,0.38492]
[1761797733510,0.00308026,109880.0,109870.0,0.47593]
[1761797733807,0.00108026,109880.0,109870.0,1.18281394]
[1761797734018,0.4798575,109910.0,109900.0,0.05996]
[1761797734320,0.5082875,109910.0,109900.0,0.38496]
[1761797734923,0.41731,109910.0,109900.0,0.40139]
[1761797735104,0.38865,109920.0,109910.0,0.05932]
[1761797735307,0.3608,109920.0,109910.0,0.05932]
[1761797735507,0.5075382,109920.0,109910.0,0.05932]
[1761797735716,0.5075382,109920.0,109910.0,0.38428]
[1761797736318,0.5075382,109920.0,109910.0,0.05932]
[1761797736517,0.5075382,109920.0,109910.0,0.38428]
[1761797736722,0.5095382,109920.0,109910.0,0.38428]
[1761797736906,0.5095382,109920.0,109910.0,0.35542]
[1761797737108,0.5095382,109920.0,109900.0,0.01643]
[1761797737109,0.0909852,109900.0,109890.0,0.05932]
[1761797737304,0.1467552,109900.0,109890.0,0.05932]
[1761797737524,0.1467552,109900.0,109890.0,0.3842]
[1761797737805,0.5075552,109900.0,109890.0,0.32484]
[1761797738010,0.38865,109910.0,109900.0,0.07575]
[1761797738508,0.5085392,109920.0,109910.0,0.03046]
[1761797738812,0.41757,109920.0,109910.0,0.38412]
[1761797739312,0.3618,109920.0,109910.0,0.4750965]
[1761797739504,0.3608,109920.0,109910.0,0.4750965]
[1761797739709,0.3608,109930.0,109920.0,0.1667182]
[1761797740013,0.3608,109940.0,109930.0,0.1502803]
[1761797740214,0.3608,109950.0,109930.0,0.4750803]
[1761797740416,0.41657,109950.0,109940.0,0.166702]
[1761797740806,0.3608,109950.0,109940.0,0.166702]
[1761797741217,0.3608,109960.0,109950.0,0.1502647]
[1761797741424,0.3608,109970.0,109960.0,0.1666864]
[1761797742222,0.05577,109960.0,109950.0,0.05932]
[1761797742414,0.05577,109960.0,109950.0,0.150265]
[1761797742720,0.38865,109970.0,109960.0,0.07575]
[1761797743021,0.3628,109970.0,109960.0,0.1666867]
[1761797743715,0.5094985,109970.0,109960.0,0.07575]
[1761797743908,0.5094985,109970.0,109950.0,0.4517408]
[1761797744123,0.41857,109970.0,109960.0,0.35494]
[1761797744321,0.05777,109970.0,109960.0,0.4911668]
[1761797744621,0.05777,109960.0,109950.0,0.1502651]
[1761797744818,0.02985,109960.0,109950.0,0.4748251]
[1761797745024,0.002,109960.0,109950.0,0.8356251]
[1761797745221,0.41757,109970.0,109960.0,0.1666868]
[1761797745419,0.05877,109970.0,109960.0,0.1666868]
[1761797745623,0.05877,109970.0,109960.0,0.07575]
[1761797745927,0.05677,109970.0,109960.0,0.1666868]
[1761797746429,0.1476985,109970.0,109960.0,0.40031]
[1761797746635,0.02785,109940.0,109930.0,0.05932]
[1761797746931,0.507511,109960.0,109950.0,0.03046]
[1761797747315,0.1467148,109950.0,109940.0,0.07575]
[1761797747517,0.5075148,109950.0,109940.0,0.40047]
[1761797748522,0.5075067,109960.0,109940.0,0.01643]
[1761797748728,0.1467314,109930.0,109920.0,0.08426038]
[1761797748922,0.1467314,109930.0,109920.0,0.40035]
[1761797749519,0.1467313,109930.0,109920.0,0.07575]
[1761797749825,0.05577,109930.0,109920.0,0.40035]
[1761797750024,0.5075278,109940.0,109930.0,0.03046]
[1761797750227,0.5075278,109940.0,109930.0,0.05932]
[1761797751327,0.02785,109910.0,109900.0,0.43655]
[1761797751628,0.1188279,109910.0,109900.0,0.76103]
[1761797751930,0.05577,109910.0,109900.0,0.07575]
[1761797752227,0.05577,109910.0,109900.0,0.40019]
[1761797752535,0.38865,109930.0,109920.0,0.07575]
[1761797752718,0.38865,109930.0,109920.0,0.40019]
[1761797752917,0.02785,109930.0,109920.0,0.40019]
[1761797753327,0.38865,109930.0,109920.0,0.40019]
[1761797753632,0.41657,109930.0,109900.0,0.38771548]
[1761797753927,0.05577,109910.0,109900.0,0.07775]
[1761797754123,0.41657,109920.0,109910.0,0.03046]
[1761797754324,0.3608,109930.0,109910.0,0.05932]
[1761797754632,0.41657,109930.0,109920.0,0.40011]
[1761797756127,0.41657,109930.0,109920.0,0.34079]
[1761797756319,0.05577,109920.0,109910.0,0.06132]
[1761797756519,0.41657,109920.0,109910.0,0.002]
[1761797756720,0.41657,109920.0,109910.0,0.38444]
[1761797756927,0.41657,109920.0,109910.0,0.38344]
[1761797757619,0.41657,109920.0,109910.0,0.38544]
[1761797758535,0.41657,109920.0,109910.0,0.06132]
[1761797758727,0.41657,109920.0,109910.0,0.38528]
[1761797759434,0.3608,109930.0,109910.0,0.38528]
[1761797759435,0.41657,109930.0,109920.0,0.05932]
[1761797759632,0.38865,109930.0,109920.0,0.07575]
[1761797759929,0.4517614,109930.0,109920.0,0.07575]
[1761797760222,0.3608,109930.0,109920.0,0.07575]
[1761797760426,0.5075314,109930.0,109920.0,0.07575]
[1761797760842,0.1467397,109920.0,109910.0,0.03046]
[1761797761131,0.5075397,109920.0,109910.0,0.03046]
[1761797761331,0.5075397,109920.0,109910.0,0.35426]
[1761797761625,0.5075397,109920.0,109910.0,0.38312]
[1761797762131,0.3608,109930.0,109920.0,0.1667198]
[1761797762830,0.3608,109930.0,109920.0,0.07575]
[1761797763025,0.41657,109930.0,109920.0,0.07575]
[1761797763221,0.3608,109930.0,109920.0,0.1667197]
[1761797763529,0.38865,109930.0,109920.0,0.39943]
[1761797764024,0.3608,109930.0,109920.0,0.39943]
[1761797764229,0.41657,109940.0,109930.0,0.05932]
[1761797764423,0.43792252,109940.0,109930.0,0.38296]
[1761797764829,0.41657,109940.0,109930.0,0.05201]
[1761797765029,0.41657,109940.0,109930.0,0.37557]
[1761797765328,0.38865,109940.0,109930.0,0.37557]
[1761797765514,0.3618,109940.0,109930.0,0.4665313]
[1761797766026,0.001,109940.0,109930.0,0.4665313]
[1761797766427,0.003,109940.0,109930.0,0.4665313]
[1761797766633,0.003,109940.0,109930.0,0.37557]
[1761797766634,0.02892,109940.0,109930.0,0.37557]
[1761797766829,0.001,109940.0,109930.0,0.37557]
[1761797767021,0.3618,109940.0,109930.0,0.37557]
[1761797767334,0.38772,109940.0,109930.0,0.37557]
[1761797767938,0.001,109940.0,109930.0,0.4665312]
[1761797768230,0.3608,109950.0,109940.0,0.06619]
[1761797768642,0.3608,109950.0,109940.0,0.157143]
[1761797768935,0.3608,109960.0,109950.0,0.05201]
[1761797769236,0.3608,109960.0,109950.0,0.4662348]
[1761797769531,0.4517333,109970.0,109960.0,0.06619]
[1761797769836,0.02592,109980.0,109970.0,0.05201]
[1761797770020,0.50356,109980.0,109970.0,0.37529]
[1761797770216,0.50356,109980.0,109970.0,0.05201]
[1761797770420,0.14276,109980.0,109970.0,0.37529]
[1761797770640,0.5035552,109990.0,109980.0,0.06619]
[1761797771624,0.3608,109990.0,109980.0,0.06619]
[1761797771821,0.5035476,110000.0,109990.0,0.05201]
[1761797772031,0.5035476,110000.0,109990.0,0.37513]
[1761797772237,0.41264,110010.0,110000.0,0.05201]
[1761797772438,0.3608,110010.0,110000.0,0.06619]
[1761797772628,0.3608,110010.0,110000.0,0.1570933]
[1761797772821,0.3608,110010.0,110000.0,0.3617919]
[1761797773026,0.706166,110020.0,110010.0,0.05333]
[1761797773226,0.706166,110020.0,110010.0,0.37641]
[1761797773426,0.04772,110010.0,110000.0,0.06336]
[1761797773636,0.7041137,110010.0,110000.0,0.3864]
[1761797774738,0.7041137,110010.0,109990.0,0.04918]
[1761797774739,0.04772,110000.0,109990.0,0.04918]
[1761797774938,0.41152,110000.0,109990.0,0.04918]
[1761797775236,0.02686,110000.0,109990.0,0.37226]
[1761797775441,0.003,110000.0,109990.0,0.1400918]
[1761797775627,0.4755554,110010.0,110000.0,0.06381]
[1761797775828,0.5014154,110010.0,110000.0,0.06381]
[1761797776438,0.4994154,110010.0,110000.0,0.06381]
[1761797776628,0.704114,110010.0,110000.0,0.06381]
[1761797777030,0.04772,110000.0,109990.0,0.37218]
[1761797777225,0.40852,110000.0,109990.0,0.37218]
[1761797777432,0.02386,110000.0,109990.0,0.37218]
[1761797777837,0.38466,110000.0,109990.0,0.37218]
[1761797778039,0.02386,110000.0,109990.0,0.37218]
[1761797778239,0.5064154,110010.0,110000.0,0.06381]
[1761797778628,0.5014154,110010.0,110000.0,0.06381]
[1761797778936,0.4994154,110010.0,110000.0,0.06381]
[1761797779538,0.1386239,110000.0,109990.0,0.37218]
[1761797779735,0.4994239,110000.0,109990.0,0.37218]
[1761797780039,0.5674986,110010.0,110000.0,0.06381]
[1761797780040,0.5064196,110010.0,110000.0,0.06381]
[1761797781038,0.5064196,110010.0,110000.0,0.38633]
[1761797781238,0.5044196,110010.0,110000.0,0.38633]
[1761797781535,0.4994196,110010.0,110000.0,0.38633]
[1761797782131,0.5014196,110010.0,110000.0,0.38633]
[1761797782333,0.3678,110010.0,110000.0,0.38633]
[1761797782833,0.7111137,110010.0,110000.0,0.38629]
[1761797783029,0.7111137,110010.0,110000.0,0.06381]
[1761797783337,0.1386284,110000.0,109990.0,0.04918]
[1761797783544,0.704127,110000.0,109990.0,0.37162]
[1761797783740,0.704127,110000.0,109990.0,0.32244]
[1761797784641,0.5014284,110000.0,109990.0,0.32244]
[1761797784840,0.5044284,110000.0,109990.0,0.32244]
[1761797785138,0.5044284,110000.0,109990.0,0.37162]
[1761797785542,0.709127,110000.0,109990.0,0.37162]
[1761797785745,0.1386311,109990.0,109980.0,0.06336]
[1761797785945,0.7041297,109990.0,109980.0,0.38576]
[1761797786237,0.7041297,109990.0,109960.0,0.37498]
[1761797786238,0.0909257,109980.0,109960.0,0.37498]
[1761797786436,0.7041457,109970.0,109960.0,0.0238]
[1761797786638,0.7041457,109970.0,109960.0,0.38621]
[1761797786842,0.4994478,109970.0,109960.0,0.38621]
[1761797788127,0.5654986,109980.0,109960.0,0.33803]
[1761797788128,0.3608,109980.0,109960.0,0.33803]
[1761797788331,0.3608,109980.0,109970.0,0.04918]
[1761797788729,0.4755753,109990.0,109980.0,0.0238]
[1761797789040,0.3608,110000.0,109980.0,0.6580278]
[1761797789244,0.3608,110000.0,109990.0,0.1400909]
[1761797789545,0.38466,110000.0,109990.0,0.04918]
[1761797789745,0.4994226,110000.0,109990.0,0.04918]
[1761797790052,0.04772,109990.0,109980.0,0.06381]
[1761797790238,0.7041295,109990.0,109980.0,0.38621]
[1761797790638,0.4994309,109990.0,109980.0,0.38621]
[1761797790839,0.4994309,109990.0,109980.0,0.3462]
[1761797791040,0.5014309,109990.0,109980.0,0.38621]
[1761797791235,0.41052,109990.0,109980.0,0.38621]
[1761797791436,0.5014313,109990.0,109980.0,0.38621]
[1761797792039,0.05072,109990.0,109980.0,0.38621]
[1761797792552,0.1416305,109990.0,109980.0,0.38621]
[1761797792857,0.05072,109990.0,109980.0,0.38621]
[1761797793040,0.003,109990.0,109980.0,0.38621]
[1761797793350,0.0939105,109990.0,109980.0,0.38621]
[1761797793741,0.001,109990.0,109980.0,0.38621]
[1761797794043,0.4994268,110000.0,109990.0,0.04918]
[1761797794642,0.1278304,109990.0,109980.0,0.38241]
[1761797795451,0.1278304,109990.0,109980.0,0.06001]
[1761797795652,0.1278304,109990.0,109980.0,0.3224]
[1761797795854,0.1278425,109980.0,109970.0,0.04538]
[1761797796154,0.4886425,109980.0,109970.0,0.36778]
[1761797796451,0.488639,109980.0,109970.0,0.36778]
[1761797797357,0.488639,109980.0,109970.0,0.04538]
[1761797797535,0.6748776,109980.0,109960.0,0.01463]
[1761797797852,0.1278562,109960.0,109950.0,0.04538]
[1761797798151,0.1278562,109960.0,109950.0,0.36778]
[1761797798349,0.4886562,109960.0,109950.0,0.04538]
[1761797798555,0.1278645,109950.0,109940.0,0.06822235]
[1761797798850,0.1278645,109950.0,109940.0,0.39062235]
[1761797799035,0.01846,109950.0,109940.0,0.39062235]
[1761797799241,0.4886609,109960.0,109950.0,0.04538]
[1761797799757,0.1288645,109950.0,109940.0,0.38196]
[1761797800048,0.4896645,109950.0,109940.0,0.38196]
[1761797800747,0.39872,109950.0,109940.0,0.38196]
[1761797800935,0.40072,109950.0,109940.0,0.38196]
[1761797801136,0.39972,109950.0,109940.0,0.38196]
[1761797802034,0.40072,109950.0,109940.0,0.38196]
[1761797802841,0.40072,109950.0,109940.0,0.382]
[1761797804041,0.40072,109950.0,109940.0,0.05956]
[1761797804239,0.03692,109930.0,109920.0,0.06869635]
[1761797804552,0.39772,109930.0,109920.0,0.0601233]
[1761797804750,0.39772,109930.0,109920.0,0.3825633]
[1761797805058,0.39772,109930.0,109920.0,0.3225533]
[1761797805253,0.39772,109930.0,109920.0,0.3593133]
[1761797805442,0.39772,109930.0,109920.0,0.0593933]
[1761797805656,0.39772,109930.0,109920.0,0.3818333]
[1761797805950,0.39772,109930.0,109920.0,0.3603133]
[1761797806252,0.39772,109930.0,109920.0,0.3235533]
[1761797806446,0.39772,109930.0,109920.0,0.3245533]
[1761797806652,0.9632186,109930.0,109920.0,0.0021133]
[1761797806844,0.9632186,109930.0,109920.0,0.3245533]
[1761797807044,1.5632186,109930.0,109920.0,0.3245533]
[1761797807255,0.9659386,109930.0,109920.0,0.0021133]
[1761797807754,1.2883786,109930.0,109920.0,0.0021133]
[1761797807954,1.3083786,109930.0,109920.0,0.0021133]
[1761797808155,1.40056184,109930.0,109920.0,0.0021133]
[1761797808355,1.37934,109930.0,109920.0,0.0021133]
[1761797808651,1.40054943,109930.0,109920.0,0.0011133]
[1761797809155,1.19585083,109930.0,109920.0,0.0011133]
[1761797809345,1.37662,109930.0,109920.0,0.0011133]
[1761797809547,1.37662,109930.0,109920.0,0.0001133]
[1761797809855,1.37666,109930.0,109920.0,0.0001133]
[1761797810639,0.8494814,109930.0,109920.0,0.0001133]
[1761797810844,1.05418,109930.0,109920.0,0.0001133]
[1761797811045,1.6569,109930.0,109920.0,0.0001133]
[1761797811640,1.6769,109930.0,109920.0,0.0001133]
[1761797811854,0.1278978,109910.0,109900.0,0.35924]
[1761797812056,0.8494978,109910.0,109900.0,0.33538]
[1761797812356,0.1279058,109900.0,109890.0,0.37673171]
[1761797812566,0.4887058,109900.0,109890.0,0.37673171]
[1761797812959,0.48881953,109900.0,109890.0,0.37673171]
[1761797813446,0.48881953,109900.0,109890.0,0.46772581]
[1761797813447,0.00011373,109900.0,109890.0,0.46772581]
[1761797813760,0.00011373,109900.0,109890.0,1.03322441]
[1761797813949,0.00011373,109900.0,109890.0,1.63322441]
[1761797814258,0.00111373,109900.0,109890.0,0.82852581]
[1761797814555,0.00311373,109900.0,109890.0,1.03322441]
[1761797814950,0.00211373,109900.0,109890.0,0.67242441]
[1761797815150,0.00211373,109900.0,109890.0,1.03322441]
[1761797815357,0.00211373,109900.0,109890.0,0.58143031]
[1761797815552,0.00211373,109900.0,109890.0,1.03322431]
[1761797816052,0.09109943,109900.0,109890.0,0.37673171]
[1761797816248,0.10955943,109900.0,109890.0,0.37677171]
[1761797816455,0.48881943,109900.0,109890.0,0.3679]
[1761797816642,0.69351803,109900.0,109890.0,0.3679]
[1761797816847,0.48881943,109900.0,109890.0,0.34638]
[1761797817047,0.48881943,109900.0,109890.0,0.02386]
[1761797817249,0.70360803,109900.0,109890.0,0.32252]
[1761797817449,0.70360803,109900.0,109860.0,0.5783986]
[1761797817652,0.39772,109890.0,109880.0,0.05828]
[1761797819058,0.3608,109890.0,109880.0,0.05828]
[1761797819447,0.39772,109890.0,109880.0,0.34638]
[1761797819649,0.36191373,109900.0,109890.0,0.02386]
[1761797819848,0.39783373,109900.0,109890.0,0.04538]
[1761797820050,0.36091373,109900.0,109890.0,0.2500786]
[1761797820360,0.36091373,109900.0,109890.0,0.04538]
[1761797820559,0.39783373,109900.0,109890.0,0.04538]
[1761797820751,0.00011373,109900.0,109890.0,0.04538]
[1761797820953,0.00211373,109900.0,109890.0,0.4589341]
[1761797821154,0.00211373,109900.0,109890.0,0.6636327]
[1761797821359,0.00211373,109900.0,109890.0,0.8197341]
[1761797821563,0.00211373,109900.0,109890.0,1.0244327]
[1761797821760,0.03692,109890.0,109880.0,0.05828]
[1761797821958,0.49081953,109900.0,109890.0,0.04538]
[1761797822459,0.48881953,109900.0,109890.0,0.36794]
[1761797822765,0.48981953,109900.0,109890.0,0.36794]
[1761797822957,0.48981943,109900.0,109890.0,0.36794]
[1761797823164,0.00311373,109900.0,109890.0,0.6636326]
[1761797823351,0.00311373,109900.0,109890.0,1.0244326]
[1761797823952,0.04003373,109900.0,109890.0,0.34642]
[1761797824161,0.40083373,109900.0,109890.0,0.36794]
[1761797824358,0.40083373,109900.0,109890.0,0.04538]
[1761797824566,0.40083373,109900.0,109890.0,0.36794]
[1761797825368,0.38237373,109900.0,109890.0,0.36794]
[1761797826468,0.39983373,109900.0,109890.0,0.36794]
[1761797826675,0.39983373,109900.0,109890.0,0.04538]
[1761797826859,0.39983373,109900.0,109890.0,0.36794]
[1761797827675,0.36391373,109900.0,109890.0,0.36794]
[1761797827864,0.39883373,109900.0,109890.0,0.36794]
[1761797828769,0.60353233,109900.0,109890.0,0.04538]
[1761797828970,0.60353233,109900.0,109890.0,0.36794]
[1761797829181,0.39883373,109900.0,109890.0,0.04538]
[1761797829362,0.39883373,109900.0,109890.0,0.36794]
[1761797829561,0.39883373,109900.0,109890.0,0.02386]
[1761797829765,0.03492,109890.0,109880.0,0.05866]
[1761797829971,0.37826,109890.0,109880.0,0.38122]
[1761797830169,0.39572,109890.0,109880.0,0.38122]
[1761797830477,0.41704897,109890.0,109880.0,0.38122]
[1761797830976,0.41704897,109890.0,109880.0,0.05866]
[1761797831187,0.41704897,109890.0,109880.0,0.38122]
[1761797831472,0.0910097,109870.0,109860.0,0.42828192]
[1761797831667,0.0910097,109870.0,109860.0,0.48105992]
[1761797831668,8.672e-05,109870.0,109860.0,0.48105992]
[1761797831868,0.10855642,109870.0,109860.0,0.39004192]
[1761797832265,0.12601642,109870.0,109860.0,0.06748192]
[1761797832570,0.50815655,109870.0,109860.0,0.39304192]
[1761797832765,0.50815655,109870.0,109860.0,0.39504192]
[1761797833380,8.672e-05,109870.0,109860.0,0.39504192]
[1761797833679,0.03500672,109870.0,109860.0,0.39504192]
[1761797834378,0.01754672,109870.0,109860.0,0.39504192]
[1761797834566,0.03500672,109870.0,109860.0,0.39304192]
[1761797834767,0.03600672,109870.0,109860.0,0.07048192]
[1761797834966,0.05735789,109870.0,109860.0,0.39304192]
[1761797835164,0.03600672,109870.0,109860.0,0.06748192]
[1761797835385,0.39880672,109870.0,109860.0,0.06748192]
[1761797835679,0.39880672,109870.0,109860.0,0.00882192]
[1761797835680,0.76292354,109870.0,109860.0,0.00882192]
[1761797835877,1.36092354,109870.0,109850.0,0.32256]
[1761797836079,1.36092354,109870.0,109840.0,1.51297388]
[1761797836080,0.03492,109850.0,109840.0,7.388e-05]
[1761797836382,0.76091005,109850.0,109840.0,0.01334103]
[1761797836880,0.04746477,109850.0,109840.0,0.14871848]
[1761797837085,7.323e-05,109850.0,109840.0,1.10951848]
[1761797837270,0.3608,109860.0,109850.0,0.1357063]
[1761797837464,0.3608,109860.0,109850.0,0.36744]
[1761797837465,0.37796,109860.0,109850.0,0.36744]
[1761797837774,0.3608,109860.0,109850.0,0.4584663]
[1761797838171,0.3608,109860.0,109850.0,0.36744]
[1761797838380,0.37801697,109860.0,109850.0,0.36744]
[1761797838875,0.00963697,109860.0,109850.0,0.04468]
[1761797839080,0.00105697,109860.0,109850.0,0.4586664]
[1761797839278,0.01821697,109860.0,109850.0,0.36764]
[1761797839480,0.02021697,109860.0,109850.0,0.36764]
[1761797839684,0.47203507,109860.0,109850.0,0.36764]
[1761797840075,0.38101697,109860.0,109850.0,0.04468]
[1761797840271,0.02021697,109860.0,109850.0,0.04468]
[1761797840478,0.38101697,109860.0,109850.0,0.04468]
[1761797840677,0.11123507,109860.0,109850.0,0.04468]
[1761797840871,0.01163697,109860.0,109850.0,0.04468]
[1761797841079,0.10165497,109860.0,109850.0,0.04468]
[1761797841385,0.47203497,109860.0,109850.0,0.04468]
[1761797841574,0.47003497,109860.0,109850.0,0.04468]
[1761797841775,0.47203497,109860.0,109850.0,0.04468]
[1761797842284,0.1081862,109850.0,109840.0,0.35809388]
[1761797842588,0.1081862,109850.0,109840.0,0.38044388]
[1761797842589,0.81275061,109850.0,109840.0,0.38044388]
[1761797842788,0.83406994,109850.0,109840.0,0.38044388]
[1761797843384,0.83406994,109850.0,109840.0,0.35793388]
[1761797843581,0.83678994,109850.0,109840.0,0.32283388]
[1761797843980,0.83406994,109850.0,109840.0,0.38044388]
[1761797844282,0.01716,109850.0,109840.0,0.47147838]
[1761797844588,0.37901697,109860.0,109850.0,0.04468]
[1761797844777,0.37801697,109860.0,109850.0,0.04468]
[1761797845178,0.36943697,109860.0,109850.0,0.1357062]
[1761797845379,0.36085697,109860.0,109850.0,0.1357062]
[1761797845894,0.37901697,109860.0,109850.0,0.04468]
[1761797846188,0.36385697,109860.0,109850.0,0.1357062]
[1761797846887,0.38101697,109860.0,109850.0,0.04468]
[1761797847095,0.38101697,109860.0,109840.0,0.01300388]
[1761797847389,0.38101697,109860.0,109840.0,0.05768388]
[1761797847390,0.00858,109850.0,109840.0,0.05768388]
[1761797847590,0.38101697,109860.0,109850.0,0.04468]
[1761797847888,0.38001697,109860.0,109850.0,0.04468]
[1761797848278,0.37143697,109860.0,109850.0,0.04468]